fUST/lending_fUST_20240509
["ID","MTS","AMOUNT","RATE_DAILY","PERIOD"]
[326696210,1715257852250,-153.0,0.00039973,2]
[326696211,1715257852259,-1000.0,0.00039987,2]
[326696212,1715257852268,-1000.0,0.00039987,3]
[326696213,1715257852281,-5000.0,0.0004,20]
[326696214,1715257852291,-4257.19598527,0.0004,4]
[326696215,1715257852300,-521.47,0.0004,7]
[326696216,1715257852311,-7489.23599951,0.0004,2]
[326696217,1715257852322,-200.9554512,0.0004,4]
[326696218,1715257852331,-2000.32466495,0.0004,10]
[326696219,1715257852340,-154.70605849,0.0004,2]
[326696220,1715257852350,-4811.06140804,0.0004,2]
[326696221,1715257852360,-1091.05108371,0.0004,2]
[326696222,1715257852468,-57265.4100793,0.0004,7]
[326696223,1715257852478,-1000.0,0.0004,2]
[326696224,1715257852488,-2100.50124579,0.0004,15]
[326696225,1715257852497,-500.0,0.0004,4]
[326696226,1715257852508,-521.83190116,0.0004,120]
[326696227,1715257852517,-282.21431465,0.0004,30]
[326696228,1715257852527,-505.0,0.0004,120]
[326696229,1715257852537,-360.32703405,0.0004,2]
[326696230,1715257852547,-20141.0,0.0004,2]
[326696231,1715257852557,-2000.0,0.0004,32]
[326696232,1715257852567,-103282.47704742,0.0004,120]
[326696233,1715257852576,-6000.0,0.0004,120]
[326696234,1715257852586,-306.6297424,0.0004,2]
[326696235,1715257852595,-187.13,0.000401,35]
[326696236,1715257852604,-157.494708,0.0004011,2]
[326696237,1715257852613,-150.5,0.0004011,35]
[326696238,1715257852622,-150.5,0.0004012,35]
[326696239,1715257852632,-146770.0,0.0004013,2]
[326696240,1715257852641,-80170.3488,0.000404,2]
[326696241,1715257852651,-2939.83,0.000404,120]
[326696242,1715257852661,-160.0,0.00040586,11]
[326696243,1715257852670,-1000.0,0.00040987,2]
[326696244,1715257852680,-1000.0,0.00040987,3]
[326696245,1715257852689,-173.49565701,0.00040993,4]
[326696246,1715257852699,-500.76007599,0.00041,120]
[326696247,1715257852708,-2684.4929802,0.00041093,120]
[326696248,1715257852717,-501.39390554,0.00041095,30]
[326696249,1715257852726,-501.68926384,0.00041095,30]
[326696250,1715257852736,-500.0,0.00041095,30]
[326696251,1715257852745,-502.43282765,0.00041095,30]
[326696252,1715257852755,-500.0,0.00041095,30]
[326696253,1715257852765,-501.81602394,0.00041095,30]
[326696254,1715257852775,-500.0,0.00041095,30]
[326696255,1715257852785,-292.10006451,0.00041095,30]
[326696256,1715257852795,-316.85130133,0.00041095,30]
[326696257,1715257852804,-500.0,0.00041095,30]
[326696258,1715257852813,-500.0,0.00041095,30]
[326696259,1715257852823,-506.5,0.00041095,30]
[326696260,1715257852833,-500.0,0.00041095,30]
[326696261,1715257852842,-500.0,0.00041095,30]
[326696262,1715257852852,-500.0,0.00041095,30]
[326696263,1715257852861,-300.0,0.00041095,7]
[326696264,1715257852873,-502.1924483,0.00041095,30]
[326696265,1715257852883,-500.0,0.00041095,30]
[326696266,1715257852893,-501.25418169,0.00041095,30]
[326696267,1715257852903,-520.12737249,0.00041095,30]
[326696268,1715257852912,-500.0,0.00041095,30]
[326696269,1715257852922,-501.20641374,0.00041095,30]
[326696270,1715257852931,-504.98738772,0.00041095,30]
[326696271,1715257852941,-500.0,0.00041095,30]
[326696272,1715257852950,-500.0,0.00041095,30]
[326696273,1715257852959,-514.65031328,0.00041095,30]
[326696274,1715257852969,-155.22463289,0.00041095,30]
[326696275,1715257852978,-500.0,0.00041095,30]
[326696276,1715257852988,-500.0,0.00041095,30]
[326696277,1715257852997,-500.0,0.00041095,30]
[326696278,1715257853007,-492.22129951,0.00041095,30]
[326696279,1715257853016,-396.82341215,0.00041095,30]
[326696280,1715257853025,-496.29457747,0.00041095,7]
[326696281,1715257853034,-500.0,0.00041095,30]
[326696282,1715257853044,-507.27911591,0.00041095,30]
[326696283,1715257853053,-500.0,0.00041095,30]
[326696284,1715257853063,-508.34918319,0.00041095,30]
[326696285,1715257853072,-500.0,0.00041095,30]
[326696286,1715257853082,-622.6,0.00041095,30]
[326696287,1715257853091,-500.0,0.00041095,30]
[326696288,1715257853100,-501.83560457,0.00041095,30]
[326696289,1715257853109,-500.0,0.00041095,30]
[326696290,1715257853118,-500.0,0.00041095,30]
[326696291,1715257853128,-500.0,0.00041095,30]
[326696292,1715257853137,-500.0,0.00041095,30]
[326696293,1715257853146,-500.0,0.00041095,30]
[326696294,1715257853155,-500.0,0.00041095,30]
[326696295,1715257853164,-500.0,0.00041095,30]
[326696296,1715257853174,-504.97924542,0.00041095,30]
[326696297,1715257853183,-500.0,0.00041095,30]
[326696298,1715257853193,-500.0,0.00041095,30]
[326696299,1715257853202,-501.7727492,0.00041095,30]
[326696300,1715257853211,-500.0,0.00041095,30]
[326696301,1715257853220,-502.18859765,0.00041095,30]
[326696302,1715257853229,-500.0,0.00041095,30]
[326696303,1715257853239,-512.2291973,0.00041095,30]
[326696304,1715257853248,-500.0,0.00041095,30]
[326696305,1715257853258,-503.93530246,0.00041095,30]
[326696306,1715257853269,-500.0,0.00041095,30]
[326696307,1715257853282,-500.0,0.00041095,30]
[326696308,1715257853291,-506.00246215,0.00041095,7]
[326696309,1715257853300,-500.0,0.00041095,30]
[326696310,1715257853311,-500.0,0.00041095,30]
[326696311,1715257853321,-500.0,0.00041095,30]
[326696312,1715257853330,-299.76213602,0.00041095,30]
[326696313,1715257853340,-512.48649025,0.00041095,30]
[326696314,1715257853349,-511.52,0.00041095,30]
[326696315,1715257853360,-500.0,0.00041095,30]
[326696316,1715257853370,-504.0650748,0.00041095,30]
[326696317,1715257853379,-500.0,0.00041095,30]
[326696318,1715257853388,-500.0,0.00041095,30]
[326696319,1715257853397,-500.0,0.00041095,30]
[326696320,1715257853406,-502.91665319,0.00041095,30]
[326696321,1715257853416,-500.0,0.00041095,30]
[326696322,1715257853426,-500.0,0.00041095,30]
[326696323,1715257853435,-500.0,0.00041095,30]
[326696324,1715257853445,-711.13,0.00041095,30]
[326696325,1715257853455,-500.0,0.00041095,30]
[326696326,1715257853465,-500.0,0.00041095,30]
[326696327,1715257853475,-500.0,0.00041095,30]
[326696328,1715257853484,-502.91244379,0.00041095,30]
[326696329,1715257853494,-503.5503214,0.00041095,30]
[326696330,1715257853503,-500.0,0.00041095,30]
[326696331,1715257853513,-883.2,0.00041095,30]
[326696332,1715257853523,-503.52548132,0.00041095,30]
[326696333,1715257853533,-500.0,0.00041095,30]
[326696334,1715257853542,-500.0,0.00041095,30]
[326696335,1715257853552,-500.0,0.00041095,30]
[326696336,1715257853563,-500.0,0.00041095,30]
[326696337,1715257853572,-500.0,0.00041095,30]
[326696338,1715257853583,-500.0,0.00041095,30]
[326696339,1715257853592,-504.63829167,0.00041095,30]
[326696340,1715257853601,-503.78015703,0.00041095,30]
[326696341,1715257853611,-500.0,0.00041095,30]
[326696342,1715257853621,-500.0,0.00041095,30]
[326696343,1715257853630,-500.0,0.00041095,30]
[326696344,1715257853640,-500.0,0.00041095,30]
[326696345,1715257853652,-500.0,0.00041095,30]
[326696346,1715257853661,-505.93641828,0.00041095,30]
[326696347,1715257853671,-1000.0,0.00041095,120]
[326696348,1715257853680,-916.56,0.00041095,30]
[326696349,1715257853690,-620.80640294,0.00041095,30]
[326696350,1715257853700,-500.0,0.00041095,30]
[326696351,1715257853709,-500.0,0.00041095,30]
[326696352,1715257853719,-500.0,0.00041095,30]
[326696353,1715257853728,-500.0,0.00041095,30]
[326696354,1715257853738,-504.80877648,0.00041095,30]
[326696355,1715257853747,-506.07784148,0.00041095,30]
[326696356,1715257853757,-500.0,0.00041095,30]
[326696357,1715257853767,-500.0,0.00041095,30]
[326696358,1715257853776,-500.0,0.00041095,30]
[326696359,1715257853786,-500.0,0.00041095,30]
[326696360,1715257853795,-500.0,0.00041095,30]
[326696361,1715257853805,-500.0,0.00041095,30]
[326696362,1715257853815,-500.0,0.00041095,30]
[326696363,1715257853825,-502.28037803,0.00041095,30]
[326696364,1715257853835,-589.9667338,0.00041095,30]
[326696365,1715257853844,-500.00307204,0.00041095,30]
[326696366,1715257853853,-500.0,0.00041095,30]
[326696367,1715257853863,-555.40293189,0.00041095,30]
[326696368,1715257853874,-506.58218724,0.00041095,30]
[326696369,1715257853884,-500.0,0.00041095,30]
[326696370,1715257853894,-500.0,0.00041095,30]
[326696371,1715257853904,-500.0,0.00041095,30]
[326696372,1715257853914,-500.0,0.00041095,30]
[326696373,1715257853924,-504.86046104,0.00041095,30]
[326696374,1715257853934,-500.0,0.00041095,30]
[326696375,1715257853944,-500.0,0.00041095,30]
[326696376,1715257853953,-506.4670105,0.00041095,30]
[326696377,1715257853963,-506.12283836,0.00041095,30]
[326696378,1715257853972,-500.0,0.00041095,30]
[326696379,1715257853981,-500.0,0.00041095,30]
[326696380,1715257853991,-504.76213133,0.00041095,30]
[326696381,1715257854001,-500.0,0.00041095,30]
[326696382,1715257854010,-500.0,0.00041095,30]
[326696383,1715257854020,-501.9357741,0.00041095,30]
[326696384,1715257854030,-1297.09,0.00041095,30]
[326696385,1715257854040,-500.0,0.00041095,30]
[326696386,1715257854049,-518.85413994,0.00041095,30]
[326696387,1715257854060,-513.67346952,0.00041095,30]
[326696388,1715257854070,-500.0,0.00041095,30]
[326696389,1715257854080,-16666.66,0.00041095,30]
[326696390,1715257854090,-513.33455079,0.00041095,30]
[326696391,1715257854100,-500.0,0.00041095,30]
[326696392,1715257854111,-542.44611802,0.00041095,30]
[326696393,1715257854122,-502.68008065,0.00041095,20]
[326696394,1715257854132,-500.0,0.00041095,30]
[326696395,1715257854143,-500.0,0.00041095,30]
[326696396,1715257854155,-707.6,0.00041095,30]
[326696397,1715257854166,-500.0,0.00041095,30]
[326696398,1715257854178,-651.59,0.00041095,30]
[326696399,1715257854190,-500.0,0.00041095,30]
[326696400,1715257854201,-500.0,0.00041095,30]
[326696401,1715257854213,-515.40408836,0.00041095,30]
[326696402,1715257854224,-502.14516283,0.00041095,30]
[326696403,1715257854235,-503.11198832,0.00041095,30]
[326696404,1715257854246,-2636.87,0.00041095,30]
[326696405,1715257854256,-500.0,0.00041095,30]
[326696406,1715257854271,-501.22515714,0.00041095,30]
[326696407,1715257854283,-241.132844,0.00041095,30]
[326696408,1715257854294,-500.0,0.00041095,30]
[326696409,1715257854306,-504.2647196,0.00041095,30]
[326696410,1715257854318,-509.10464751,0.00041095,30]
[326696411,1715257854328,-500.0,0.00041095,2]
[326696412,1715257854338,-500.0,0.00041095,30]
[326696413,1715257854351,-507.52219306,0.00041095,30]
[326696414,1715257854362,-508.24034559,0.00041095,30]
[326696415,1715257854373,-500.0,0.00041095,30]
[326696416,1715257854383,-500.0,0.00041095,30]
[326696417,1715257854395,-3370.55,0.00041095,21]
[326696418,1715257854406,-269.14772948,0.00041095,30]
[326696419,1715257854416,-13710.5,0.00041095,30]
[326696420,1715257854426,-500.0,0.00041095,30]
[326696421,1715257854436,-500.0,0.00041095,30]
[326696422,1715257854445,-502.56201972,0.00041095,30]
[326696423,1715257854455,-500.0,0.00041095,30]
[326696424,1715257854464,-505.254746,0.00041095,30]
[326696425,1715257854474,-1098.59,0.00041095,30]
[326696426,1715257854484,-500.0,0.00041095,30]
[326696427,1715257854494,-1361.39,0.00041095,30]
[326696428,1715257854504,-527.76305717,0.00041095,30]
[326696429,1715257854514,-500.0,0.00041095,30]
[326696430,1715257854524,-503.09279965,0.00041095,30]
[326696431,1715257854533,-503.39470578,0.00041095,30]
[326696432,1715257854544,-501.28528056,0.00041095,30]
[326696433,1715257854554,-500.0,0.00041095,30]
[326696434,1715257854565,-500.0,0.00041095,30]
[326696435,1715257854574,-500.0,0.00041095,30]
[326696436,1715257854584,-500.0,0.00041095,30]
[326696437,1715257854593,-7344.12,0.00041095,30]
[326696438,1715257854602,-500.0,0.00041095,30]
[326696439,1715257854612,-500.0,0.00041095,30]
[326696440,1715257854622,-500.0,0.00041095,30]
[326696441,1715257854631,-501.81188844,0.00041095,30]
[326696442,1715257854640,-500.0,0.00041095,30]
[326696443,1715257854649,-500.0,0.00041095,30]
[326696444,1715257854658,-505.97986332,0.00041095,30]
[326696445,1715257854668,-500.0,0.00041095,30]
[326696446,1715257854677,-500.0,0.00041095,30]
[326696447,1715257854687,-500.0,0.00041095,30]
[326696448,1715257854696,-500.0,0.00041095,30]
[326696449,1715257854706,-579.06,0.00041095,30]
[326696450,1715257854715,-502.1944106,0.00041095,30]
[326696451,1715257854725,-500.0,0.00041095,30]
[326696452,1715257854734,-1699.39,0.00041095,30]
[326696453,1715257854744,-1151.12,0.00041095,30]
[326696454,1715257854755,-500.0,0.00041095,30]
[326696455,1715257854765,-500.0,0.00041095,30]
[326696456,1715257854774,-329.56873298,0.00041095,30]
[326696457,1715257854783,-500.0,0.00041095,30]
[326696458,1715257854793,-500.0,0.00041095,30]
[326696459,1715257854802,-500.0,0.00041095,30]
[326696460,1715257854814,-500.0,0.00041095,30]
[326696461,1715257854824,-501.50519942,0.00041095,30]
[326696462,1715257854833,-500.0,0.00041095,30]
[326696463,1715257854843,-500.0,0.00041095,30]
[326696464,1715257854852,-500.0,0.00041095,30]
[326696465,1715257854862,-500.0,0.00041095,30]
[326696466,1715257854874,-504.03277266,0.00041095,30]
[326696467,1715257854884,-500.0,0.00041095,30]
[326696468,1715257854894,-528.02,0.00041095,30]
[326696469,1715257854903,-500.0,0.00041095,30]
[326696470,1715257854913,-500.0,0.00041095,30]
[326696471,1715257854923,-893.08,0.00041095,30]
[326696472,1715257854933,-501.08460618,0.00041095,30]
[326696473,1715257854944,-500.0,0.00041095,30]
[326696474,1715257854954,-500.0,0.00041095,30]
[326696475,1715257854964,-500.0,0.00041095,30]
[326696476,1715257854974,-987.24,0.00041095,30]
[326696477,1715257854985,-500.0,0.00041095,30]
[326696478,1715257854994,-500.0,0.00041095,7]
[326696479,1715257855004,-2122.67,0.00041095,30]
[326696480,1715257855015,-500.0,0.00041095,30]
[326696481,1715257855025,-1395.57,0.00041095,30]
[326696482,1715257855035,-533.6975265,0.00041095,30]
[326696483,1715257855045,-500.0,0.00041095,30]
[326696484,1715257855055,-500.0,0.00041095,30]
[326696485,1715257855066,-502.85174228,0.00041095,30]
[326696486,1715257855075,-500.0,0.00041095,30]
[326696487,1715257855171,-500.0,0.00041095,30]
[326696488,1715257855195,-617.81512289,0.00041095,30]
[326696489,1715257855206,-1081.08,0.00041095,30]
[326696490,1715257855215,-500.0,0.00041095,30]
[326696491,1715257855225,-2710.95,0.00041095,30]
[326696492,1715257855236,-500.0,0.00041095,2]
[326696493,1715257855246,-500.0,0.00041095,30]
[326696494,1715257855255,-500.0,0.00041095,30]
[326696495,1715257855266,-503.74688524,0.00041095,30]
[326696496,1715257855275,-500.0,0.00041095,3]
[326696497,1715257855290,-500.0,0.00041095,30]
[326696498,1715257855300,-178.2992361,0.00041096,2]
[326696499,1715257855312,-1240.9277345,0.00041096,7]
[326696500,1715257855322,-500.0,0.00041369,31]
[326696501,1715257855331,-500.0,0.00041369,31]
[326696502,1715257855341,-508.19973146,0.00041369,31]
[326696503,1715257855351,-485.37960732,0.00041369,31]
[326696504,1715257855362,-186.88271753,0.00041369,31]
[326696505,1715257855372,-500.0,0.00041369,31]
[326696506,1715257855381,-504.17881435,0.00041369,31]
[326696507,1715257855392,-300.0,0.00041369,7]
[326696508,1715257855401,-500.0,0.00041369,31]
[326696509,1715257855413,-500.0,0.00041369,31]
[326696510,1715257855422,-500.0,0.00041369,31]
[326696511,1715257855432,-348.00059697,0.00041369,31]
[326696512,1715257855442,-502.77011074,0.00041369,31]
[326696513,1715257855452,-500.0,0.00041369,31]
[326696514,1715257855461,-500.0,0.00041369,31]
[326696515,1715257855471,-500.0,0.00041369,31]
[326696516,1715257855481,-511.14873724,0.00041369,31]
[326696517,1715257855490,-622.6,0.00041369,31]
[326696518,1715257855499,-500.0,0.00041369,31]
[326696519,1715257855510,-500.0,0.00041369,31]
[326696520,1715257855519,-500.0,0.00041369,31]
[326696521,1715257855529,-507.64124149,0.00041369,31]
[326696522,1715257855539,-500.0,0.00041369,31]
[326696523,1715257855548,-500.0,0.00041369,31]
[326696524,1715257855559,-502.97110608,0.00041369,31]
[326696525,1715257855568,-500.0,0.00041369,31]
[326696526,1715257855578,-510.42794557,0.00041369,31]
[326696527,1715257855587,-504.94344541,0.00041369,31]
[326696528,1715257855598,-500.0,0.00041369,31]
[326696529,1715257855607,-369.27087264,0.00041369,31]
[326696530,1715257855616,-502.61310435,0.00041369,31]
[326696531,1715257855625,-509.00016065,0.00041369,31]
[326696532,1715257855635,-500.0,0.00041369,31]
[326696533,1715257855644,-500.0,0.00041369,31]
[326696534,1715257855654,-500.0,0.00041369,31]
[326696535,1715257855663,-511.52,0.00041369,31]
[326696536,1715257855673,-504.58731048,0.00041369,31]
[326696537,1715257855683,-517.06021723,0.00041369,31]
[326696538,1715257855693,-500.0,0.00041369,31]
[326696539,1715257855702,-506.87185022,0.00041369,31]
[326696540,1715257855712,-500.0,0.00041369,31]
[326696541,1715257855722,-503.26687307,0.00041369,31]
[326696542,1715257855731,-500.0,0.00041369,31]
[326696543,1715257855741,-711.13,0.00041369,31]
[326696544,1715257855751,-507.02144899,0.00041369,31]
[326696545,1715257855761,-500.0,0.00041369,31]
[326696546,1715257855771,-500.0,0.00041369,31]
[326696547,1715257855781,-505.66822754,0.00041369,31]
[326696548,1715257855791,-883.2,0.00041369,31]
[326696549,1715257855800,-506.46080798,0.00041369,31]
[326696550,1715257855811,-506.57136843,0.00041369,31]
[326696551,1715257855821,-415.01016447,0.00041369,31]
[326696552,1715257855831,-507.61034693,0.00041369,31]
[326696553,1715257855841,-501.58081437,0.00041369,31]
[326696554,1715257855850,-500.0,0.00041369,31]
[326696555,1715257855860,-500.0,0.00041369,31]
[326696556,1715257855870,-503.98109154,0.00041369,31]
[326696557,1715257855880,-500.0,0.00041369,31]
[326696558,1715257855890,-501.79043568,0.00041369,31]
[326696559,1715257855900,-1000.0,0.00041369,120]
[326696560,1715257855910,-916.56,0.00041369,31]
[326696561,1715257855919,-510.5401193,0.00041369,31]
[326696562,1715257855929,-500.0,0.00041369,31]
[326696563,1715257855939,-500.0,0.00041369,31]
[326696564,1715257855948,-505.27237443,0.00041369,31]
[326696565,1715257855957,-500.0,0.00041369,31]
[326696566,1715257855967,-500.0,0.00041369,31]
[326696567,1715257855977,-500.0,0.00041369,31]
[326696568,1715257855986,-502.87192433,0.00041369,31]
[326696569,1715257855997,-500.0,0.00041369,31]
[326696570,1715257856006,-504.97950763,0.00041369,31]
[326696571,1715257856016,-500.0,0.00041369,31]
[326696572,1715257856027,-500.0,0.00041369,31]
[326696573,1715257856037,-351.06557332,0.00041369,31]
[326696574,1715257856047,-504.51072727,0.00041369,31]
[326696575,1715257856057,-500.0,0.00041369,31]
[326696576,1715257856067,-500.0,0.00041369,31]
[326696577,1715257856076,-500.0,0.00041369,31]
[326696578,1715257856085,-401.80956821,0.00041369,31]
[326696579,1715257856095,-514.68458058,0.00041369,31]
[326696580,1715257856104,-500.0,0.00041369,31]
[326696581,1715257856114,-1297.09,0.00041369,31]
[326696582,1715257856124,-500.0,0.00041369,31]
[326696583,1715257856133,-500.0,0.00041369,31]
[326696584,1715257856142,-16666.66,0.00041369,31]
[326696585,1715257856152,-500.0,0.00041369,31]
[326696586,1715257856161,-513.43773701,0.00041369,31]
[326696587,1715257856170,-507.18094916,0.00041369,31]
[326696588,1715257856180,-707.6,0.00041369,31]
[326696589,1715257856189,-500.0,0.00041369,31]
[326696590,1715257856199,-651.59,0.00041369,31]
[326696591,1715257856208,-512.63736231,0.00041369,31]
[326696592,1715257856218,-500.0,0.00041369,31]
[326696593,1715257856227,-2636.87,0.00041369,31]
[326696594,1715257856236,-500.0,0.00041369,31]
[326696595,1715257856246,-500.0,0.00041369,31]
[326696596,1715257856256,-500.0,0.00041369,2]
[326696597,1715257856266,-506.60908599,0.00041369,31]
[326696598,1715257856276,-500.0,0.00041369,31]
[326696599,1715257856288,-500.0,0.00041369,31]
[326696600,1715257856297,-3370.55,0.00041369,21]
[326696601,1715257856307,-13710.5,0.00041369,31]
[326696602,1715257856319,-500.0,0.00041369,31]
[326696603,1715257856328,-503.20636113,0.00041369,31]
[326696604,1715257856337,-500.0,0.00041369,31]
[326696605,1715257856348,-1098.59,0.00041369,31]
[326696606,1715257856358,-500.0,0.00041369,31]
[326696607,1715257856367,-1361.39,0.00041369,31]
[326696608,1715257856377,-500.0,0.00041369,31]
[326696609,1715257856387,-500.0,0.00041369,31]
[326696610,1715257856396,-500.0,0.00041369,31]
[326696611,1715257856406,-505.62908879,0.00041369,31]
[326696612,1715257856416,-567.12463416,0.00041369,31]
[326696613,1715257856425,-7344.12,0.00041369,31]
[326696614,1715257856434,-500.0,0.00041369,31]
[326696615,1715257856444,-504.324578,0.00041369,31]
[326696616,1715257856454,-500.0,0.00041369,31]
[326696617,1715257856463,-500.0,0.00041369,31]
[326696618,1715257856472,-501.72759396,0.00041369,31]
[326696619,1715257856482,-504.59623448,0.00041369,31]
[326696620,1715257856492,-500.0,0.00041369,31]
[326696621,1715257856501,-500.0,0.00041369,31]
[326696622,1715257856511,-500.0,0.00041369,31]
[326696623,1715257856520,-579.06,0.00041369,31]
[326696624,1715257856530,-500.0,0.00041369,31]
[326696625,1715257856539,-1699.39,0.00041369,31]
[326696626,1715257856548,-1151.12,0.00041369,31]
[326696627,1715257856561,-500.0,0.00041369,31]
[326696628,1715257856570,-500.0,0.00041369,31]
[326696629,1715257856579,-405.41768662,0.00041369,31]
[326696630,1715257856588,-500.0,0.00041369,31]
[326696631,1715257856597,-500.0,0.00041369,31]
[326696632,1715257856606,-500.0,0.00041369,31]
[326696633,1715257856615,-500.0,0.00041369,31]
[326696634,1715257856625,-500.0,0.00041369,31]
[326696635,1715257856634,-503.1158669,0.00041369,31]
[326696636,1715257856643,-528.02,0.00041369,31]
[326696637,1715257856652,-500.0,0.00041369,31]
[326696638,1715257856661,-503.15464341,0.00041369,31]
[326696639,1715257856670,-502.61913367,0.00041369,31]
[326696640,1715257856679,-893.08,0.00041369,31]
[326696641,1715257856689,-500.0,0.00041369,31]
[326696642,1715257856698,-500.0,0.00041369,31]
[326696643,1715257856707,-500.0,0.00041369,31]
[326696644,1715257856716,-987.24,0.00041369,31]
[326696645,1715257856726,-500.0,0.00041369,31]
[326696646,1715257856735,-500.0,0.00041369,7]
[326696647,1715257856745,-2122.67,0.00041369,31]
[326696648,1715257856754,-507.18787034,0.00041369,31]
[326696649,1715257856763,-1395.57,0.00041369,31]
[326696650,1715257856773,-500.0,0.00041369,31]
[326696651,1715257856782,-500.0,0.00041369,31]
[326696652,1715257856791,-500.0,0.00041369,31]
[326696653,1715257856800,-500.0,0.00041369,31]
[326696654,1715257856812,-1081.08,0.00041369,31]
[326696655,1715257856822,-2710.95,0.00041369,31]
[326696656,1715257856831,-500.0,0.00041369,31]
[326696657,1715257856840,-500.0,0.00041369,2]
[326696658,1715257856850,-500.0,0.00041369,31]
[326696659,1715257856859,-500.0,0.00041369,3]
[326696660,1715257856869,-505.03423802,0.00041369,31]
[326696661,1715257856879,-390.719587,0.00041384,2]
[326696662,1715257856889,-160.0,0.00041424,12]
[326696663,1715257856898,-2933.990168,0.00041553,120]
[326696664,1715257856908,-498.43061052,0.00041643,32]
[326696665,1715257856918,-500.0,0.00041643,32]
[326696666,1715257856927,-500.0,0.00041643,32]
[326696667,1715257856936,-300.0,0.00041643,7]
[326696668,1715257856946,-500.0,0.00041643,32]
[326696669,1715257856955,-500.0,0.00041643,32]
[326696670,1715257856965,-505.86086606,0.00041643,32]
[326696671,1715257856973,-500.0,0.00041643,32]
[326696672,1715257856983,-500.0,0.00041643,32]
[326696673,1715257856992,-500.0,0.00041643,32]
[326696674,1715257857002,-622.6,0.00041643,32]
[326696675,1715257857013,-500.0,0.00041643,32]
[326696676,1715257857023,-649.22879046,0.00041643,32]
[326696677,1715257857033,-500.0,0.00041643,32]
[326696678,1715257857042,-515.21414526,0.00041643,32]
[326696679,1715257857052,-500.0,0.00041643,32]
[326696680,1715257857063,-500.0,0.00041643,32]
[326696681,1715257857072,-500.0,0.00041643,32]
[326696682,1715257857082,-500.0,0.00041643,32]
[326696683,1715257857091,-229.01337842,0.00041643,32]
[326696684,1715257857100,-500.0,0.00041643,32]
[326696685,1715257857109,-511.52,0.00041643,32]
[326696686,1715257857118,-500.0,0.00041643,32]
[326696687,1715257857128,-355.2202526,0.00041643,32]
[326696688,1715257857138,-500.0,0.00041643,32]
[326696689,1715257857147,-711.13,0.00041643,32]
[326696690,1715257857157,-500.0,0.00041643,32]
[326696691,1715257857166,-500.0,0.00041643,32]
[326696692,1715257857175,-883.2,0.00041643,32]
[326696693,1715257857184,-500.0,0.00041643,32]
[326696694,1715257857194,-500.0,0.00041643,32]
[326696695,1715257857204,-500.0,0.00041643,32]
[326696696,1715257857213,-1000.0,0.00041643,120]
[326696697,1715257857223,-916.56,0.00041643,32]
[326696698,1715257857232,-500.0,0.00041643,32]
[326696699,1715257857243,-500.0,0.00041643,32]
[326696700,1715257857253,-500.0,0.00041643,32]
[326696701,1715257857262,-508.81809636,0.00041643,32]
[326696702,1715257857274,-500.0,0.00041643,32]
[326696703,1715257857285,-500.0,0.00041643,32]
[326696704,1715257857294,-500.0,0.00041643,32]
[326696705,1715257857303,-500.0,0.00041643,32]
[326696706,1715257857314,-500.0,0.00041643,32]
[326696707,1715257857323,-418.46236098,0.00041643,32]
[326696708,1715257857332,-500.0,0.00041643,32]
[326696709,1715257857341,-1297.09,0.00041643,32]